bitfinex/quotes_SOLUSD_20251117
["timestamp","ask_amount","ask_price","bid_price","bid_amount"]
[1763389283394,23.10796616,138.23,138.19,12.64913847]
[1763389283602,23.10796616,138.23,138.16,0.69]
[1763389283798,9.78882769,138.21,138.18,12.64913847]
[1763389284013,9.78882769,138.21,138.2,12.64913847]
[1763389284221,9.78882769,138.24,138.2,13.33913847]
[1763389284425,9.78882769,138.27,138.23,12.64913847]
[1763389284722,9.78882769,138.29,138.25,12.64913847]
[1763389286528,9.78882769,138.29,138.26,12.64913847]
[1763389286835,12.64913847,138.33,138.28,12.64913847]
[1763389287193,9.78882769,138.31,138.27,12.64913847]
[1763389287426,9.78882769,138.31,138.25,0.69]
[1763389287427,22.43796616,138.31,138.26,12.64913847]
[1763389287605,22.43796616,138.31,138.27,12.64913847]
[1763389287806,9.78882769,138.31,138.27,12.64913847]
[1763389288118,9.78882769,138.31,138.27,13.33913847]
[1763389288306,9.78882769,138.31,138.28,13.33913847]
[1763389288502,9.78882769,138.33,138.29,12.64913847]
[1763389288706,9.78882769,138.33,138.29,13.33913847]
[1763389288914,12.64913847,138.36,138.31,12.64913847]
[1763389289217,12.64913847,138.36,138.32,12.64913847]
[1763389289521,9.78882769,138.35,138.32,12.64913847]
[1763389289941,9.78882769,138.35,138.25,18.12096]
[1763389290105,10.45882769,138.35,138.31,12.64913847]
[1763389290308,22.43796616,138.36,138.31,12.64913847]
[1763389290622,23.10796616,138.36,138.31,12.64913847]
[1763389290813,23.10796616,138.36,138.29,0.69]
[1763389290814,9.78882769,138.34,138.2,12.64913847]
[1763389291010,9.78882769,138.34,138.31,12.64913847]
[1763389291217,9.78882769,138.34,138.3,12.64913847]
[1763389291218,22.43796616,138.34,138.3,12.64913847]
[1763389291404,23.10796616,138.34,138.29,12.64913847]
[1763389291805,9.78882769,138.32,138.29,12.64913847]
[1763389292120,9.78882769,138.32,138.2,12.64913847]
[1763389292121,9.78882769,138.32,138.28,12.64913847]
[1763389292713,10.45882769,138.32,138.28,12.64913847]
[1763389293112,10.45882769,138.32,138.27,12.64913847]
[1763389293302,9.78882769,138.32,138.28,12.64913847]
[1763389293609,9.78882769,138.33,138.28,12.64913847]
[1763389293817,9.78882769,138.33,138.26,0.69]
[1763389293818,0.67,138.4,138.32,12.64913847]
[1763389294037,12.64913847,138.39,138.34,12.64913847]
[1763389294213,13.31913847,138.4,138.34,12.64913847]
[1763389294407,9.78882769,138.38,138.34,12.64913847]
[1763389295117,9.78882769,138.37,138.33,12.64913847]
[1763389295320,9.78882769,138.37,138.21,8.04014407]
[1763389295321,12.64913847,138.36,138.31,12.64913847]
[1763389295521,12.64913847,138.36,138.32,12.64913847]
[1763389295724,12.64913847,138.36,138.32,13.33913847]
[1763389296033,12.64913847,138.36,138.31,12.64913847]
[1763389296237,12.64913847,138.36,138.32,12.64913847]
[1763389296419,9.78882769,138.36,138.3,0.69]
[1763389296621,22.43796616,138.36,138.32,12.64913847]
[1763389296820,9.78882769,138.36,138.32,12.64913847]
[1763389297033,9.78882769,138.36,138.32,13.33913847]
[1763389297472,22.43796616,138.35,138.3,12.64913847]
[1763389297641,23.10796616,138.35,138.3,12.64913847]
[1763389297837,23.10796616,138.35,138.3,13.33913847]
[1763389298841,12.64913847,138.34,138.3,13.33913847]
[1763389299140,18.79096,138.38,138.31,0.69]
[1763389299346,9.78882769,138.34,138.31,0.69]
[1763389300039,22.43796616,138.34,138.29,12.64913847]
[1763389300338,22.43796616,138.34,138.29,13.33913847]
[1763389300535,22.43796616,138.34,138.3,0.69]
[1763389300722,9.78882769,138.32,138.28,12.64913847]
[1763389301237,22.43796616,138.31,138.29,0.69]
[1763389301548,22.43796616,138.31,138.27,0.69]
[1763389301928,22.43796616,138.31,138.27,13.33913847]
[1763389302244,9.78882769,138.3,138.27,13.33913847]
[1763389302453,9.78882769,138.34,138.28,0.69]
[1763389302650,9.78882769,138.3,138.28,0.69]
[1763389303149,9.78882769,138.28,138.14,21.54818935]
[1763389303327,12.64913847,138.26,138.21,0.69]
[1763389303524,9.78882769,138.24,138.21,0.69]
[1763389303747,12.64913847,138.23,138.19,12.64913847]
[1763389304144,12.64913847,138.2,138.14,0.69]
[1763389304324,12.64913847,138.2,138.11,0.1]
[1763389304325,22.43796616,138.16,138.11,13.43913847]
[1763389304529,22.43796616,138.16,138.12,0.69]
[1763389304724,9.78882769,138.16,138.12,13.33913847]
[1763389305254,9.78882769,138.16,138.13,0.69]
[1763389305455,12.64913847,138.16,138.13,0.69]
[1763389305633,9.78882769,138.15,138.11,12.74913847]
[1763389305833,9.78882769,138.15,138.12,0.69]
[1763389306037,9.78882769,138.18,138.12,13.33913847]
[1763389306243,12.64913847,138.17,138.12,13.33913847]
[1763389307038,22.43796616,138.13,138.11,0.1]
[1763389307642,23.10796616,138.12,138.11,0.1]
[1763389307843,22.43796616,138.12,138.11,0.1]
[1763389309665,9.78882769,138.12,138.11,0.1]
[1763389309956,9.78882769,138.13,138.11,0.79]
[1763389310137,9.78882769,138.13,138.11,0.1]
[1763389310340,12.64913847,138.15,138.11,0.1]
[1763389310550,9.78882769,138.15,138.11,13.43913847]
[1763389310837,22.43796616,138.15,138.11,0.79]
[1763389311037,12.64913847,138.18,138.13,12.64913847]
[1763389311261,12.64913847,138.2,138.12,0.69]
[1763389311464,9.78882769,138.18,138.15,12.64913847]
[1763389311651,9.78882769,138.18,138.14,12.64913847]
[1763389311830,22.43796616,138.18,138.13,12.64913847]
[1763389312030,9.78882769,138.19,138.14,13.33913847]
[1763389312239,22.43796616,138.16,138.11,13.43913847]
[1763389312488,22.43796616,138.14,138.11,0.1]
[1763389312658,9.78882769,138.12,138.11,0.1]
[1763389312834,9.78882769,138.18,138.11,13.43913847]
[1763389313034,9.78882769,138.18,138.13,12.64913847]
[1763389313257,22.43796616,138.18,138.14,0.69]
[1763389313761,12.64913847,138.19,138.14,0.69]
[1763389314067,22.43796616,138.18,138.14,13.33913847]
[1763389314355,22.43796616,138.18,138.14,0.69]
[1763389314936,22.43796616,138.18,138.14,13.33913847]
[1763389315149,9.78882769,138.16,138.14,0.69]
[1763389315349,22.43796616,138.16,138.11,0.79]
[1763389315550,9.78882769,138.14,138.11,13.43913847]
[1763389315962,9.78882769,138.14,138.11,0.1]
[1763389316157,9.78882769,138.12,138.11,0.1]
[1763389316855,9.78882769,138.15,138.11,13.43913847]
[1763389317161,22.43796616,138.16,138.12,0.69]
[1763389317670,9.78882769,138.14,138.12,0.69]
[1763389318865,18.12096,138.17,138.12,7.97971601]
[1763389318866,9.78882769,138.16,138.12,7.97971601]
[1763389319039,9.78882769,138.16,138.13,0.69]
[1763389319240,9.78882769,138.2,138.13,7.97971601]
[1763389319466,9.78882769,138.16,138.11,0.1]
[1763389319668,9.78882769,138.12,138.11,0.1]
[1763389320478,7.95971601,138.12,138.11,0.1]
[1763389320771,7.95971601,138.12,138.08,0.1]
[1763389320772,27.90978769,138.09,138.08,0.1]
[1763389320970,9.78882769,138.08,138.07,0.1]
[1763389321344,17.6485437,138.08,138.07,0.1]
[1763389321548,32.18043815,138.08,138.07,0.1]
[1763389321754,9.78882769,138.04,137.97,8.07971601]
[1763389321984,17.0785437,138.03,137.97,0.1]
[1763389322183,9.78882769,138.02,137.97,0.1]
[1763389322497,9.78882769,137.98,137.97,0.1]
[1763389322973,9.78882769,138.02,137.97,8.07971601]
[1763389323176,0.47,138.07,138.01,7.28971601]
[1763389323177,9.78882769,138.06,138.01,7.28971601]
[1763389323387,9.78882769,138.06,138.03,7.28971601]
[1763389323553,9.78882769,138.1,138.04,7.97971601]
[1763389323775,7.28971601,138.1,138.05,7.28971601]
[1763389323972,9.78882769,138.1,138.06,7.28971601]
[1763389324277,17.0785437,138.1,138.06,0.69]
[1763389324457,9.78882769,138.1,138.04,7.28971601]
[1763389324660,9.78882769,138.07,138.03,7.97971601]
[1763389324865,7.28971601,138.06,138.02,7.28971601]
[1763389325067,17.0785437,138.05,138.01,7.28971601]
[1763389325269,17.0785437,138.05,138.0,7.28971601]
[1763389325465,9.78882769,138.02,137.97,0.1]
[1763389325669,27.90978769,138.02,137.97,0.1]
[1763389325866,9.78882769,138.01,137.97,0.79]
[1763389326275,9.78882769,138.01,137.97,8.07971601]
[1763389326768,17.0785437,138.01,137.97,0.79]
[1763389326969,0.47,138.01,137.97,0.1]
[1763389327169,9.78882769,137.99,137.97,0.8]
[1763389327685,9.78882769,138.01,137.97,8.08971601]
[1763389328092,18.12096,138.02,137.99,7.28971601]
[1763389328296,9.78882769,138.03,138.0,0.7]
[1763389328678,0.47,138.11,138.01,7.28971601]
[1763389328991,0.47,138.1,138.02,0.7]
[1763389329295,25.41067601,138.09,138.02,0.7]
[1763389329597,9.78882769,138.08,138.02,0.7]
[1763389329972,9.78882769,138.08,138.03,7.28971601]
[1763389330173,9.78882769,138.08,138.03,7.98971601]
[1763389330382,0.47,138.07,138.0,0.7]
[1763389330588,18.12096,138.05,138.01,7.28971601]
[1763389330781,18.12096,138.05,138.02,7.28971601]
[1763389330982,0.47,138.1,138.04,7.28971601]
[1763389330983,7.28971601,138.1,138.04,7.28971601]
[1763389331185,17.0785437,138.12,138.06,7.28971601]
[1763389331507,105.07,138.13,138.0,26.11067601]
[1763389331508,9.78882769,138.13,138.08,7.28971601]
[1763389331667,7.28971601,138.12,138.07,7.28971601]
[1763389331873,17.0785437,138.13,138.08,7.28971601]
[1763389332077,7.28971601,138.12,138.05,0.7]
[1763389332287,0.47,138.13,138.07,7.28971601]
[1763389332513,0.47,138.13,138.05,0.7]
[1763389332795,9.78882769,138.11,138.05,0.7]
[1763389332986,9.78882769,138.11,138.07,7.28971601]
[1763389333394,9.78882769,138.09,138.05,7.28971601]
[1763389333577,17.0785437,138.11,138.05,7.28971601]
[1763389333772,0.47,138.15,138.07,7.28971601]
[1763389333971,25.41067601,138.14,138.09,7.28971601]
[1763389334207,18.09071821,138.2,138.1,0.7]
[1763389334208,7.28971601,138.18,138.1,0.7]
[1763389334485,33.55992914,138.21,138.01,10.48882769]
[1763389334486,18.12096,138.12,138.01,10.48882769]
[1763389334695,17.0785437,138.11,138.04,18.12096]
[1763389334897,9.78882769,138.11,138.06,7.28971601]
[1763389335192,17.0785437,138.11,138.06,7.28971601]
[1763389335391,17.0785437,138.11,138.07,0.7]
[1763389335392,9.78882769,138.11,138.07,0.7]
[1763389335693,9.78882769,138.11,138.07,7.98971601]
[1763389336263,17.0785437,138.11,138.04,0.7]
[1763389336463,17.0785437,138.11,138.05,7.28971601]
[1763389336464,17.5485437,138.11,138.05,7.28971601]
[1763389336890,17.0785437,138.11,138.06,7.28971601]
[1763389337091,9.78882769,138.11,138.07,7.98971601]
[1763389337295,9.78882769,138.11,138.07,0.7]
[1763389337589,9.78882769,138.11,138.07,7.98971601]
[1763389338089,9.78882769,138.11,138.08,0.68]
[1763389339390,9.78882769,138.14,138.09,7.28971601]
[1763389339715,9.78882769,138.14,138.1,7.96971601]
[1763389340213,9.78882769,138.14,138.1,0.68]
[1763389340517,17.5485437,138.14,138.07,0.68]
[1763389340706,9.78882769,138.14,138.09,7.28971601]
[1763389341010,9.78882769,138.14,138.11,7.28971601]
[1763389341324,18.08976274,138.2,138.07,0.68]
[1763389341325,0.47,138.21,138.13,7.28971601]
[1763389341605,7.28971601,138.22,138.17,7.28971601]
[1763389341804,0.47,138.24,138.16,7.28971601]
[1763389342105,18.12096,138.21,138.16,7.28971601]
[1763389342306,18.12096,138.21,138.14,7.96971601]
[1763389342620,35.1995037,138.2,138.14,7.96971601]
[1763389343288,7.28971601,138.19,138.14,0.68]
[1763389343490,9.78882769,138.14,138.09,0.68]
[1763389343804,9.78882769,138.14,138.1,7.28971601]
[1763389344196,9.78882769,138.14,138.11,0.68]
[1763389344604,9.78882769,138.14,138.11,7.96971601]
[1763389344805,7.28971601,138.18,138.13,7.28971601]
[1763389344988,9.78882769,138.18,138.14,7.28971601]
[1763389345182,9.78882769,138.18,138.12,0.68]
[1763389345499,9.78882769,138.18,138.15,7.28971601]
[1763389345700,9.78882769,138.18,138.12,0.68]
[1763389345701,9.78882769,138.18,138.14,7.28971601]
[1763389345908,9.78882769,138.18,138.12,0.68]
[1763389346112,9.78882769,138.18,138.14,7.28971601]
[1763389346418,9.78882769,138.18,138.14,7.96971601]
[1763389346607,9.78882769,138.18,138.15,7.96971601]
[1763389346801,9.78882769,138.18,138.15,0.68]
[1763389346997,9.78882769,138.18,138.15,7.28971601]
[1763389347325,9.78882769,138.18,138.12,0.68]
[1763389347488,7.28971601,138.17,138.13,7.28971601]
[1763389347889,18.12096,138.19,138.15,7.28971601]
[1763389348102,9.78882769,138.18,138.14,7.28971601]
[1763389348307,17.0785437,138.18,138.14,7.96971601]
[1763389348486,17.0785437,138.18,138.14,0.68]
[1763389349307,7.28971601,138.17,138.13,7.28971601]
[1763389349487,7.28971601,138.17,138.13,7.96971601]
[1763389349821,7.28971601,138.17,138.13,7.28971601]
[1763389350049,7.28971601,138.17,138.13,7.96971601]
[1763389350483,9.78882769,138.18,138.13,7.28971601]
[1763389350688,7.28971601,138.17,138.13,7.28971601]
[1763389350918,7.28971601,138.17,138.13,7.96971601]
[1763389351496,17.0785437,138.18,138.14,0.68]
[1763389351826,7.28971601,138.17,138.14,0.68]
[1763389352009,7.28971601,138.17,138.13,7.28971601]
[1763389352205,9.78882769,138.18,138.15,7.28971601]
[1763389352523,7.28971601,138.17,138.13,7.28971601]
[1763389352723,17.5485437,138.18,138.13,7.28971601]
[1763389353495,17.5485437,138.18,138.13,7.96971601]
[1763389354113,17.0785437,138.15,138.11,7.28971601]
[1763389354403,17.0785437,138.15,138.1,7.28971601]
[1763389354622,7.28971601,138.15,138.11,0.68]
[1763389354924,7.75971601,138.15,138.1,7.96971601]
[1763389355224,7.23703186,138.18,138.04,0.68]
[1763389355225,17.0785437,138.11,138.04,0.68]
[1763389355430,7.28971601,138.1,138.06,7.28971601]
[1763389355598,17.0785437,138.09,138.0,7.28971601]
[1763389355799,7.28971601,138.04,137.97,0.1]
[1763389356000,9.78882769,138.01,137.97,7.38971601]
[1763389356230,9.78882769,138.01,137.97,8.06971601]
[1763389356398,7.28971601,138.02,137.98,7.99971601]
[1763389356608,9.78882769,138.05,138.01,7.28971601]
[1763389356805,9.78882769,138.07,138.04,7.28971601]
[1763389357226,9.78882769,138.05,138.01,0.71]
[1763389357582,9.78882769,138.07,138.04,7.28971601]
[1763389358239,7.28971601,138.1,138.06,7.28971601]
[1763389358403,27.90978769,138.09,138.07,7.28971601]
[1763389358603,9.78882769,138.09,138.07,7.28971601]
[1763389358803,35.1995037,138.12,138.05,0.71]
[1763389359042,27.90978769,138.12,138.05,0.71]
[1763389359205,35.1995037,138.12,138.07,7.28971601]
[1763389359725,17.0785437,138.12,138.07,7.99971601]
[1763389359906,17.0785437,138.12,138.02,18.12096]
[1763389359907,9.78882769,138.12,138.09,7.28971601]
[1763389360107,17.0785437,138.15,138.1,7.99971601]
[1763389360638,9.78882769,138.13,138.1,7.99971601]
[1763389360933,9.78882769,138.13,138.11,0.71]
[1763389361110,9.78882769,138.13,138.1,7.99971601]
[1763389361520,7.28971601,138.16,138.11,7.99971601]
[1763389361725,17.0785437,138.17,138.12,7.28971601]
[1763389361917,25.41067601,138.16,138.12,7.28971601]
[1763389362115,9.78882769,138.15,138.13,7.28971601]
[1763389362333,9.78882769,138.15,138.12,7.28971601]
[1763389362652,7.28971601,138.16,138.12,7.28971601]
[1763389362840,9.78882769,138.18,138.13,0.71]
[1763389363149,7.28971601,138.17,138.13,0.71]
[1763389364144,17.0785437,138.15,138.08,0.71]
[1763389364326,17.0785437,138.15,138.1,7.28971601]
[1763389364526,17.0785437,138.15,138.12,7.28971601]
[1763389364527,9.78882769,138.15,138.12,7.28971601]
[1763389364944,9.78882769,138.15,138.12,7.99971601]
[1763389365449,9.78882769,138.15,138.12,0.71]
[1763389365642,104.6,138.16,138.12,0.71]
[1763389365845,104.6,138.16,138.14,7.28971601]
[1763389366047,104.6,138.16,138.15,7.99971601]
[1763389366347,104.6,138.16,138.15,7.28971601]
[1763389366745,104.6,138.16,138.13,0.71]
[1763389366960,9.78882769,138.15,138.11,0.71]
[1763389367120,9.78882769,138.15,138.11,7.99971601]
[1763389367437,9.78882769,138.15,138.13,7.28971601]
[1763389367629,9.78882769,138.15,138.11,0.71]
[1763389367827,17.0785437,138.15,138.09,0.71]
[1763389368030,17.0785437,138.15,138.11,7.28971601]
[1763389368246,9.78882769,138.15,138.12,7.28971601]
[1763389370151,104.6,138.16,138.14,7.28971601]
[1763389370951,18.12096,138.17,138.14,7.99971601]
[1763389371524,9.78882769,138.18,138.15,7.99971601]
[1763389371926,9.78882769,138.18,138.16,7.28971601]
[1763389372127,9.78882769,138.18,138.15,7.99971601]
[1763389373341,9.78882769,138.18,138.15,0.71]
[1763389373542,9.78882769,138.18,138.15,7.99971601]
[1763389373753,9.78882769,138.18,138.16,7.28971601]
[1763389374055,9.78882769,138.18,138.16,7.99971601]
[1763389374267,9.78882769,138.23,138.17,7.99971601]
[1763389374553,17.62,138.25,138.2,7.28971601]
[1763389374755,9.78882769,138.24,138.21,7.99971601]
[1763389374930,0.2,138.25,138.22,7.28971601]
[1763389375128,17.2785437,138.25,138.14,18.12096]
[1763389375337,17.0785437,138.23,138.19,7.28971601]
[1763389375758,9.78882769,138.23,138.19,7.99971601]
[1763389376134,17.0785437,138.23,138.19,7.99971601]
[1763389376347,17.0785437,138.23,138.19,0.71]
[1763389376742,0.47,138.22,138.17,7.28971601]
[1763389376955,9.78882769,138.2,138.17,7.28971601]
[1763389377243,104.6,138.19,138.17,7.99971601]
[1763389377880,104.6,138.19,138.18,7.99971601]
[1763389378171,104.6,138.19,138.11,18.12096]
[1763389378172,104.6,138.19,138.17,7.28971601]
[1763389378374,104.6,138.19,138.18,0.71]
[1763389378559,104.6,138.19,138.18,7.99971601]
[1763389379660,27.90978769,138.24,138.18,7.99971601]
[1763389379979,27.90978769,138.24,138.21,7.28971601]
[1763389380353,9.78882769,138.23,138.2,7.28971601]
[1763389380790,9.78882769,138.23,138.19,0.71]
[1763389380791,12.68362943,138.21,138.14,0.71]
[1763389381074,9.78882769,138.2,138.16,12.68362943]
[1763389381280,9.78882769,138.21,138.17,12.68362943]
[1763389381583,9.78882769,138.22,138.18,13.39362943]
[1763389381747,9.78882769,138.22,138.13,0.71]
[1763389381948,9.78882769,138.22,138.17,12.68362943]
[1763389382170,9.78882769,138.22,138.18,12.68362943]
[1763389382374,22.94245712,138.22,138.17,12.68362943]
[1763389382559,9.78882769,138.2,138.17,12.68362943]
[1763389382874,22.47245712,138.2,138.14,0.71]
[1763389383082,22.47245712,138.2,138.15,12.68362943]
[1763389383451,22.94245712,138.2,138.15,12.68362943]
[1763389383762,9.78882769,138.2,138.16,12.68362943]
[1763389383967,0.47,138.19,138.13,0.71]
[1763389384167,9.78882769,138.17,138.13,12.68362943]
[1763389384374,22.47245712,138.17,138.13,12.68362943]
[1763389384576,22.47245712,138.17,138.12,12.68362943]
[1763389384780,22.47245712,138.15,138.1,12.68362943]
[1763389385079,27.90978769,138.18,138.13,12.68362943]
[1763389385251,0.47,138.17,138.13,12.68362943]
[1763389385451,41.06341712,138.18,138.13,12.68362943]
[1763389385779,27.90978769,138.18,138.14,12.68362943]
[1763389386077,27.90978769,138.2,138.16,12.68362943]
[1763389386476,9.78882769,138.2,138.16,12.68362943]
[1763389387381,10.25882769,138.2,138.16,12.68362943]
[1763389387674,22.94245712,138.2,138.15,12.68362943]
[1763389388580,9.78882769,138.2,138.17,12.68362943]
[1763389388964,9.78882769,138.2,138.16,0.67]
[1763389388965,10.25882769,138.2,138.16,12.68362943]
[1763389389553,9.78882769,138.2,138.16,12.68362943]
[1763389390073,127.54245712,138.2,138.16,12.68362943]
[1763389390677,0.2,138.25,138.17,0.67]
[1763389390878,0.2,138.25,138.24,12.68362943]
[1763389391077,0.2,138.25,138.23,12.68362943]
[1763389391267,0.2,138.25,138.19,0.67]
[1763389391468,0.2,138.25,138.23,12.68362943]
[1763389392073,9.78882769,138.24,138.18,0.67]
[1763389392272,9.78882769,138.2,138.19,12.68362943]
[1763389392576,27.90978769,138.2,138.19,12.68362943]
[1763389392769,18.12096,138.2,138.19,13.35362943]
[1763389394653,18.12096,138.22,138.19,13.35362943]
[1763389394993,18.12096,138.21,138.2,0.67]
[1763389396177,18.12096,138.21,138.2,13.35362943]
[1763389397068,0.2,138.25,138.2,13.35362943]
[1763389397274,0.2,138.25,138.24,12.68362943]
[1763389398076,9.98882769,138.25,138.24,12.68362943]
[1763389398283,9.98882769,138.25,138.24,13.35362943]
[1763389399583,9.78882769,138.24,138.22,12.68362943]
[1763389399764,18.12096,138.21,138.2,0.67]
[1763389399964,9.78882769,138.22,138.2,13.35362943]
[1763389400160,9.78882769,138.22,138.21,12.68362943]
[1763389400381,9.78882769,138.2,138.18,12.68362943]
[1763389400582,9.78882769,138.2,138.18,13.35362943]
[1763389400880,9.78882769,138.2,138.18,12.68362943]
[1763389401084,9.78882769,138.2,138.1,12.68362943]
[1763389401265,9.78882769,138.21,138.1,12.68362943]
[1763389401582,22.47245712,138.2,138.11,0.67]
[1763389401775,9.78882769,138.2,138.16,12.68362943]
[1763389401974,22.47245712,138.21,138.17,12.68362943]
[1763389402286,9.78882769,138.19,138.18,13.35362943]
[1763389402491,9.78882769,138.19,138.18,12.68362943]
[1763389402669,9.78882769,138.19,138.17,12.68362943]
[1763389402989,9.78882769,138.19,138.15,13.35362943]
[1763389403168,9.78882769,138.19,138.16,0.67]
[1763389403370,22.47245712,138.19,138.15,0.67]
[1763389403805,9.78882769,138.15,138.06,8.04014407]
[1763389404086,27.90978769,138.13,138.1,0.67]
[1763389404465,27.90978769,138.13,138.1,13.35362943]
[1763389404664,27.90978769,138.13,138.11,0.67]
[1763389405974,27.90978769,138.13,138.09,0.67]
[1763389406173,9.78882769,138.11,138.07,12.68362943]
[1763389406574,9.78882769,138.11,138.08,0.67]
[1763389406898,22.47245712,138.11,138.08,0.67]
[1763389407594,22.47245712,138.12,138.08,0.67]
[1763389408791,22.47245712,138.1,138.05,13.35362943]
[1763389408990,18.12096,138.06,138.01,0.67]
[1763389409195,18.12096,138.06,138.03,12.68362943]
[1763389409376,9.78882769,138.05,138.03,12.68362943]
[1763389409581,9.78882769,138.05,138.04,0.67]
[1763389410480,12.68362943,138.12,138.04,13.35362943]
[1763389410683,9.78882769,138.12,138.08,12.68362943]
[1763389410996,9.78882769,138.1,138.05,0.67]
[1763389411298,9.78882769,138.1,138.07,12.68362943]
[1763389411681,9.78882769,138.1,138.08,0.67]
[1763389411877,9.78882769,138.1,138.03,18.12096]
[1763389412081,9.78882769,138.1,138.07,13.35362943]
[1763389412775,9.78882769,138.1,138.07,0.67]
[1763389414692,22.47245712,138.1,138.06,12.68362943]
[1763389414896,22.47245712,138.1,138.06,13.35362943]
[1763389415105,22.47245712,138.1,138.05,12.68362943]
[1763389415287,9.78882769,138.08,138.05,0.67]
[1763389415483,22.47245712,138.08,138.05,0.67]
[1763389416279,22.47245712,138.08,137.96,0.1]
[1763389416479,9.78882769,138.06,138.02,13.39362943]
[1763389416685,18.12096,138.08,138.02,0.71]
[1763389416904,9.78882769,138.07,138.06,12.68362943]
[1763389417107,18.12096,138.08,138.06,12.68362943]
[1763389417404,9.78882769,138.09,138.06,12.68362943]
[1763389417703,9.78882769,138.09,138.07,13.39362943]
[1763389417906,9.78882769,138.13,138.08,12.68362943]
[1763389418081,9.78882769,138.09,138.08,13.39362943]
[1763389418281,9.78882769,138.09,138.08,12.68362943]
[1763389418906,9.78882769,138.11,138.08,13.39362943]
[1763389419088,9.78882769,138.11,138.1,12.68362943]
[1763389419286,9.78882769,138.11,138.08,12.68362943]
[1763389419496,9.78882769,138.11,138.09,0.71]
[1763389420408,9.78882769,138.11,138.08,12.68362943]
[1763389420906,22.94245712,138.11,138.06,12.68362943]
[1763389421113,9.78882769,138.09,138.05,13.39362943]
[1763389421402,40.59341712,138.09,138.05,0.71]
[1763389421908,9.78882769,138.09,138.05,0.71]
[1763389422209,9.78882769,138.06,138.05,13.39362943]
[1763389423107,41.06341712,138.09,138.04,12.68362943]
[1763389423315,9.78882769,138.06,137.97,0.1]
[1763389423485,9.78882769,138.02,137.99,0.71]
[1763389423690,9.78882769,138.02,137.99,13.39362943]
[1763389423892,9.78882769,138.03,138.0,12.68362943]
[1763389424212,9.78882769,138.03,138.0,0.71]
[1763389424786,22.47245712,138.03,137.98,13.39362943]
[1763389424985,22.47245712,138.03,137.98,0.71]
[1763389425298,22.47245712,138.01,137.98,0.71]
[1763389425500,22.47245712,138.01,137.97,0.1]
[1763389425701,9.78882769,137.99,137.97,0.1]
[1763389426090,22.47245712,138.01,137.97,0.81]
[1763389426591,22.47245712,138.01,137.97,13.49362943]
[1763389427002,9.78882769,138.01,137.97,13.49362943]
[1763389427318,9.78882769,138.02,137.98,13.39362943]
[1763389427819,9.78882769,138.02,137.99,0.71]
[1763389428319,22.47245712,138.02,137.97,13.49362943]
[1763389428515,22.47245712,138.02,137.98,0.71]
[1763389428694,9.78882769,138.02,137.98,0.71]
[1763389428896,9.78882769,138.02,137.98,13.39362943]
[1763389429100,9.78882769,138.02,137.99,12.68362943]
[1763389429303,9.78882769,138.02,137.99,13.39362943]
[1763389429509,9.78882769,138.02,138.0,13.39362943]
[1763389429710,114.38882769,138.02,138.0,13.39362943]
[1763389429916,9.78882769,138.05,138.01,0.71]
[1763389430303,9.78882769,138.06,138.04,12.68362943]
[1763389430497,9.78882769,138.06,138.04,13.39362943]
[1763389431014,9.78882769,138.08,138.04,13.39362943]
[1763389431208,9.78882769,138.04,138.01,0.71]
[1763389431387,9.78882769,138.04,138.0,12.68362943]
[1763389431591,9.78882769,138.04,138.01,12.68362943]
[1763389431893,9.78882769,138.04,138.01,13.39362943]
[1763389432313,9.78882769,138.04,138.01,12.68362943]
[1763389432526,9.78882769,138.04,138.01,13.39362943]
[1763389432890,9.78882769,138.04,138.01,0.71]
[1763389433592,9.78882769,138.04,138.02,12.68362943]
[1763389433795,9.78882769,138.04,138.03,13.39362943]
[1763389434101,9.78882769,138.06,138.03,13.39362943]
[1763389434425,9.78882769,138.06,138.0,12.68362943]
[1763389434426,9.78882769,138.06,138.05,12.68362943]
[1763389434792,9.78882769,138.06,138.05,13.39362943]
[1763389435208,9.78882769,138.06,138.03,12.68362943]
[1763389435520,9.78882769,138.06,138.01,12.68362943]
[1763389435521,12.68362943,138.05,138.01,12.68362943]
[1763389435717,9.78882769,138.04,138.01,13.39362943]
[1763389436226,18.12096,138.02,138.01,0.71]
[1763389436432,27.90978769,138.02,138.01,0.71]
[1763389436735,9.78882769,138.02,138.01,0.71]
[1763389437434,9.78882769,138.02,138.01,13.39362943]
[1763389439018,0.47,138.08,138.01,13.39362943]
[1763389439019,9.78882769,138.05,138.01,13.39362943]
[1763389439209,9.78882769,138.06,138.03,12.68362943]
[1763389439410,9.78882769,138.06,138.02,0.71]